fUST/lending_fUST_20250926
["ID","MTS","AMOUNT","RATE_DAILY","PERIOD"]
[387817720,1758888643819,-827.58828057,0.00039221,5]
[387817721,1758888643828,-503.62900369,0.00039221,5]
[387817722,1758888643836,-1000.0,0.00039221,5]
[387817723,1758888643845,-5037.90453913,0.00039281,2]
[387817724,1758888643853,-6049.18456008,0.00039293,2]
[387817725,1758888643861,-200.0,0.0003939,120]
[387817726,1758888643870,-364.18048296,0.00039411,33]
[387817727,1758888643878,-480.0,0.00039452,30]
[387817728,1758888643886,-480.0,0.00039452,30]
[387817729,1758888643895,-523.65390046,0.00039452,30]
[387817730,1758888643905,-480.0,0.00039452,30]
[387817731,1758888643914,-480.0,0.00039452,30]
[387817732,1758888643923,-480.0,0.00039452,30]
[387817733,1758888643933,-480.0,0.00039452,30]
[387817734,1758888643942,-433.82155839,0.00039452,30]
[387817735,1758888643952,-480.0,0.00039452,30]
[387817736,1758888643961,-480.0,0.00039452,30]
[387817737,1758888643971,-480.0,0.00039452,30]
[387817738,1758888643980,-480.0,0.00039452,30]
[387817739,1758888643990,-480.0,0.00039452,30]
[387817741,1758888643999,-531.24,0.00039452,30]
[387817742,1758888644010,-480.0,0.00039452,30]
[387817743,1758888644020,-480.0,0.00039452,30]
[387817744,1758888644029,-489.07251996,0.00039452,30]
[387817745,1758888644038,-480.0,0.00039452,30]
[387817747,1758888644047,-1480.18,0.00039452,30]
[387817748,1758888644056,-480.0,0.00039452,30]
[387817749,1758888644066,-480.0,0.00039452,30]
[387817750,1758888644075,-480.0,0.00039452,30]
[387817751,1758888644085,-480.0,0.00039452,30]
[387817752,1758888644094,-721.24,0.00039452,30]
[387817753,1758888644104,-506.89,0.00039452,30]
[387817754,1758888644113,-720.1,0.00039452,30]
[387817755,1758888644123,-480.0,0.00039452,30]
[387817756,1758888644133,-658.47,0.00039452,30]
[387817757,1758888644143,-480.0,0.00039452,30]
[387817758,1758888644152,-480.0,0.00039452,30]
[387817759,1758888644162,-480.0,0.00039452,30]
[387817760,1758888644172,-480.0,0.00039452,30]
[387817761,1758888644181,-480.0,0.00039452,30]
[387817762,1758888644191,-3163.02,0.00039452,30]
[387817763,1758888644200,-480.0,0.00039452,30]
[387817764,1758888644209,-480.0,0.00039452,30]
[387817765,1758888644218,-480.0,0.00039452,30]
[387817766,1758888644227,-555.11,0.00039452,30]
[387817767,1758888644236,-480.0,0.00039452,30]
[387817768,1758888644246,-480.0,0.00039452,30]
[387817769,1758888644255,-480.0,0.00039452,30]
[387817770,1758888644264,-480.0,0.00039452,30]
[387817771,1758888644274,-805.09,0.00039452,3]
[387817772,1758888644283,-648.22,0.00039452,30]
[387817773,1758888644292,-480.0,0.00039452,30]
[387817774,1758888644302,-480.0,0.00039452,30]
[387817775,1758888644311,-480.0,0.00039452,30]
[387817776,1758888644320,-912.7,0.00039452,30]
[387817777,1758888644330,-480.0,0.00039452,21]
[387817778,1758888644339,-544.18,0.00039452,30]
[387817779,1758888644348,-480.0,0.00039452,30]
[387817780,1758888644357,-480.0,0.00039452,30]
[387817781,1758888644367,-1268.94,0.00039452,30]
[387817782,1758888644377,-750.32,0.00039452,30]
[387817783,1758888644387,-480.0,0.00039452,30]
[387817784,1758888644399,-480.0,0.00039452,30]
[387817785,1758888644415,-480.0,0.00039452,30]
[387817787,1758888644424,-487.72,0.00039452,30]
[387817788,1758888644434,-1333.09,0.00039452,30]
[387817790,1758888644444,-480.0,0.00039452,30]
[387817791,1758888644452,-1691.87,0.00039452,30]
[387817792,1758888644462,-480.0,0.00039452,30]
[387817793,1758888644471,-651.15,0.00039452,30]
[387817794,1758888644480,-482.2,0.00039452,30]
[387817795,1758888644489,-754.39,0.00039452,30]
[387817796,1758888644499,-490.4,0.00039452,30]
[387817797,1758888644508,-3277.59,0.00039452,30]
[387817798,1758888644518,-480.0,0.00039452,30]
[387817799,1758888644527,-480.0,0.00039452,30]
[387817800,1758888644536,-500.0,0.00039455,5]
[387817801,1758888644546,-356.61553702,0.00039622,5]
[387817802,1758888644555,-369.66,0.00039716,3]
[387817803,1758888644564,-480.0,0.00039726,30]
[387817804,1758888644574,-480.0,0.00039726,30]
[387817805,1758888644587,-588.06,0.00039726,30]
[387817806,1758888644596,-480.0,0.00039726,30]
[387817807,1758888644605,-480.0,0.00039726,30]
[387817808,1758888644614,-480.0,0.00039726,30]
[387817809,1758888644623,-480.0,0.00039726,30]
[387817810,1758888644633,-402.93738698,0.00039726,30]
[387817811,1758888644642,-480.0,0.00039726,30]
[387817813,1758888644652,-480.0,0.00039726,30]
[387817815,1758888644661,-480.0,0.00039726,30]
[387817816,1758888644670,-480.0,0.00039726,30]
[387817817,1758888644679,-480.0,0.00039726,30]
[387817818,1758888644688,-1480.18,0.00039726,30]
[387817819,1758888644696,-480.0,0.00039726,30]
[387817820,1758888644705,-480.0,0.00039726,30]
[387817821,1758888644714,-480.0,0.00039726,30]
[387817822,1758888644723,-480.0,0.00039726,30]
[387817823,1758888644731,-721.24,0.00039726,30]
[387817824,1758888644740,-506.89,0.00039726,30]
[387817825,1758888644750,-720.1,0.00039726,30]
[387817826,1758888644759,-480.0,0.00039726,30]
[387817827,1758888644768,-658.47,0.00039726,30]
[387817828,1758888644777,-480.0,0.00039726,30]
[387817829,1758888644786,-480.0,0.00039726,30]
[387817830,1758888644795,-480.0,0.00039726,30]
[387817831,1758888644804,-480.0,0.00039726,30]
[387817832,1758888644814,-480.0,0.00039726,30]
[387817833,1758888644823,-3163.02,0.00039726,30]
[387817834,1758888644832,-480.0,0.00039726,30]
[387817835,1758888644841,-480.0,0.00039726,30]
[387817836,1758888644850,-480.0,0.00039726,30]
[387817837,1758888644860,-555.11,0.00039726,30]
[387817838,1758888644870,-480.0,0.00039726,30]
[387817839,1758888644880,-480.0,0.00039726,30]
[387817840,1758888644889,-480.0,0.00039726,30]
[387817841,1758888644898,-805.09,0.00039726,3]
[387817842,1758888644907,-648.22,0.00039726,30]
[387817843,1758888644916,-462.18141502,0.00039726,30]
[387817844,1758888644926,-480.0,0.00039726,30]
[387817845,1758888644935,-480.0,0.00039726,30]
[387817846,1758888644943,-912.7,0.00039726,30]
[387817847,1758888644952,-480.0,0.00039726,21]
[387817848,1758888644962,-544.18,0.00039726,30]
[387817849,1758888644971,-208.65849592,0.00039726,30]
[387817850,1758888644980,-480.0,0.00039726,30]
[387817851,1758888644989,-1268.94,0.00039726,30]
[387817852,1758888644998,-750.32,0.00039726,30]
[387817853,1758888645007,-480.0,0.00039726,30]
[387817854,1758888645016,-480.0,0.00039726,30]
[387817855,1758888645026,-480.0,0.00039726,30]
[387817856,1758888645035,-487.72,0.00039726,30]
[387817857,1758888645044,-1333.09,0.00039726,30]
[387817858,1758888645054,-480.0,0.00039726,30]
[387817859,1758888645062,-1691.87,0.00039726,30]
[387817860,1758888645072,-480.0,0.00039726,30]
[387817861,1758888645081,-651.15,0.00039726,30]
[387817862,1758888645091,-482.2,0.00039726,30]
[387817863,1758888645100,-754.39,0.00039726,30]
[387817864,1758888645109,-490.4,0.00039726,30]
[387817865,1758888645119,-3277.59,0.00039726,30]
[387817866,1758888645128,-480.0,0.00039726,30]
[387817867,1758888645137,-480.0,0.00039726,30]
[387817868,1758888645146,-915.61377862,0.00039768,5]
[387817869,1758888645156,-1500.0,0.00039768,5]
[387817870,1758888645165,-303.90273887,0.00039768,5]
[387817871,1758888645174,-500.0,0.00039999,120]
[387817872,1758888645183,-480.0,0.0004,30]
[387817873,1758888645193,-480.0,0.0004,30]
[387817874,1758888645203,-480.0,0.0004,30]
[387817875,1758888645212,-480.0,0.0004,30]
[387817876,1758888645220,-550.66546563,0.0004,30]
[387817877,1758888645230,-480.0,0.0004,30]
[387817878,1758888645239,-480.0,0.0004,30]
[387817879,1758888645248,-480.0,0.0004,30]
[387817880,1758888645258,-480.0,0.0004,30]
[387817881,1758888645267,-480.0,0.0004,30]
[387817882,1758888645276,-1480.18,0.0004,30]
[387817883,1758888645285,-480.0,0.0004,30]
[387817884,1758888645294,-480.0,0.0004,30]
[387817885,1758888645303,-592.80162402,0.0004,30]
[387817886,1758888645312,-721.24,0.0004,30]
[387817887,1758888645322,-506.89,0.0004,30]
[387817888,1758888645331,-720.1,0.0004,30]
[387817889,1758888645340,-480.0,0.0004,30]
[387817890,1758888645349,-658.47,0.0004,30]
[387817891,1758888645358,-480.0,0.0004,30]
[387817892,1758888645367,-480.0,0.0004,30]
[387817893,1758888645377,-480.0,0.0004,30]
[387817894,1758888645386,-605.7522204,0.0004,120]
[387817896,1758888645395,-480.0,0.0004,30]
[387817897,1758888645404,-480.0,0.0004,30]
[387817898,1758888645413,-480.0,0.0004,30]
[387817899,1758888645423,-3163.02,0.0004,30]
[387817900,1758888645431,-480.0,0.0004,30]
[387817901,1758888645441,-555.11,0.0004,30]
[387817903,1758888645450,-480.0,0.0004,30]
[387817904,1758888645459,-480.0,0.0004,30]
[387817905,1758888645467,-480.0,0.0004,30]
[387817906,1758888645477,-805.09,0.0004,3]
[387817907,1758888645487,-648.22,0.0004,30]
[387817908,1758888645496,-480.0,0.0004,30]
[387817909,1758888645505,-480.0,0.0004,30]
[387817910,1758888645514,-912.7,0.0004,30]
[387817911,1758888645523,-480.0,0.0004,21]
[387817912,1758888645532,-544.18,0.0004,30]
[387817913,1758888645541,-480.0,0.0004,30]
[387817914,1758888645550,-1268.94,0.0004,30]
[387817916,1758888645559,-750.32,0.0004,30]
[387817917,1758888645569,-480.0,0.0004,30]
[387817919,1758888645579,-480.0,0.0004,30]
[387817920,1758888645589,-480.0,0.0004,30]
[387817921,1758888645598,-487.72,0.0004,30]
[387817922,1758888645607,-1333.09,0.0004,30]
[387817923,1758888645615,-480.0,0.0004,30]
[387817924,1758888645625,-1691.87,0.0004,30]
[387817925,1758888645635,-480.0,0.0004,30]
[387817926,1758888645644,-651.15,0.0004,30]
[387817927,1758888645652,-482.2,0.0004,30]
[387817928,1758888645661,-754.39,0.0004,30]
[387817929,1758888645670,-490.4,0.0004,30]
[387817930,1758888645679,-3277.59,0.0004,30]
[387817931,1758888645688,-480.0,0.0004,30]
[387817932,1758888645697,-480.0,0.0004,30]
[387817933,1758888645706,-151.0,0.0004015,60]
[387817934,1758888645715,-168.81634126,0.00040222,30]
[387817935,1758888645723,-480.09376591,0.00040273,30]
[387817936,1758888645732,-297.99492982,0.00040273,30]
[387817937,1758888645742,-480.0,0.00040273,30]
[387817938,1758888645750,-480.0,0.00040273,30]
[387817939,1758888645759,-480.0,0.00040273,30]
[387817940,1758888645768,-480.0,0.00040273,30]
[387817941,1758888645776,-480.0,0.00040273,30]
[387817942,1758888645786,-480.0,0.00040273,30]
[387817943,1758888645794,-1480.18,0.00040273,30]
[387817944,1758888645803,-480.0,0.00040273,30]
[387817945,1758888645812,-480.0,0.00040273,30]
[387817946,1758888645821,-721.24,0.00040273,30]
[387817947,1758888645914,-506.89,0.00040273,30]
[387817948,1758888645924,-720.1,0.00040273,30]
[387817949,1758888645934,-658.47,0.00040273,30]
[387817950,1758888645942,-480.0,0.00040273,30]
[387817951,1758888645951,-480.0,0.00040273,30]
[387817952,1758888645961,-480.0,0.00040273,30]
[387817953,1758888645971,-480.0,0.00040273,30]
[387817954,1758888645986,-480.0,0.00040273,30]
[387817955,1758888645996,-480.0,0.00040273,30]
[387817956,1758888646007,-480.0,0.00040273,30]
[387817957,1758888646016,-3163.02,0.00040273,30]
[387817958,1758888646025,-480.0,0.00040273,30]
[387817959,1758888646035,-555.11,0.00040273,30]
[387817960,1758888646044,-480.0,0.00040273,30]
[387817961,1758888646054,-480.0,0.00040273,30]
[387817962,1758888646063,-480.0,0.00040273,30]
[387817963,1758888646073,-805.09,0.00040273,3]
[387817964,1758888646082,-648.22,0.00040273,30]
[387817965,1758888646091,-480.0,0.00040273,30]
[387817966,1758888646101,-912.7,0.00040273,30]
[387817967,1758888646110,-480.0,0.00040273,21]
[387817968,1758888646119,-544.18,0.00040273,30]
[387817969,1758888646128,-480.0,0.00040273,30]
[387817970,1758888646139,-1268.94,0.00040273,30]
[387817971,1758888646148,-750.32,0.00040273,30]
[387817972,1758888646157,-480.0,0.00040273,30]
[387817973,1758888646167,-480.0,0.00040273,30]
[387817974,1758888646176,-480.0,0.00040273,30]
[387817975,1758888646186,-487.72,0.00040273,30]
[387817976,1758888646196,-1333.09,0.00040273,30]
[387817977,1758888646205,-480.0,0.00040273,30]
[387817978,1758888646215,-1691.87,0.00040273,30]
[387817979,1758888646224,-480.0,0.00040273,30]
[387817980,1758888646234,-651.15,0.00040273,30]
[387817982,1758888646245,-482.2,0.00040273,30]
[387817984,1758888646255,-754.39,0.00040273,30]
[387817986,1758888646266,-490.4,0.00040273,30]
[387817987,1758888646276,-3277.59,0.00040273,30]
[387817988,1758888646286,-480.0,0.00040273,30]
[387817990,1758888646296,-480.0,0.00040273,30]
[387817991,1758888646306,-2000.0,0.00040316,5]
[387817992,1758888646316,-182.51551669,0.000405,120]
[387817993,1758888646326,-480.0,0.00040547,30]
[387817995,1758888646336,-499.15109246,0.00040547,30]
[387817996,1758888646345,-480.0,0.00040547,30]
[387817997,1758888646354,-480.0,0.00040547,30]
[387817998,1758888646364,-480.0,0.00040547,30]
[387818000,1758888646374,-480.0,0.00040547,30]
[387818001,1758888646387,-1480.18,0.00040547,30]
[387818003,1758888646396,-480.0,0.00040547,30]
[387818004,1758888646406,-480.0,0.00040547,30]
[387818005,1758888646415,-721.24,0.00040547,30]
[387818006,1758888646425,-506.89,0.00040547,30]
[387818007,1758888646435,-720.1,0.00040547,30]
[387818008,1758888646445,-658.47,0.00040547,30]
[387818009,1758888646454,-480.0,0.00040547,30]
[387818010,1758888646464,-192.24,0.00040547,30]
[387818012,1758888646473,-581.73936874,0.00040547,30]
[387818013,1758888646482,-480.0,0.00040547,30]
[387818014,1758888646491,-480.0,0.00040547,30]
[387818015,1758888646501,-386.24595197,0.00040547,30]
[387818016,1758888646510,-3163.02,0.00040547,30]
[387818017,1758888646519,-480.0,0.00040547,30]
[387818018,1758888646528,-555.11,0.00040547,30]
[387818019,1758888646538,-480.0,0.00040547,30]
[387818020,1758888646547,-480.0,0.00040547,30]
[387818021,1758888646557,-480.0,0.00040547,30]
[387818022,1758888646566,-805.09,0.00040547,3]
[387818023,1758888646578,-648.22,0.00040547,30]
[387818024,1758888646590,-480.0,0.00040547,30]
[387818025,1758888646599,-912.7,0.00040547,30]
[387818026,1758888646609,-480.0,0.00040547,21]
[387818027,1758888646619,-544.18,0.00040547,30]
[387818028,1758888646629,-480.0,0.00040547,30]
[387818029,1758888646638,-1268.94,0.00040547,30]
[387818030,1758888646647,-750.32,0.00040547,30]
[387818031,1758888646658,-480.0,0.00040547,30]
[387818032,1758888646668,-480.0,0.00040547,30]
[387818033,1758888646677,-487.72,0.00040547,30]
[387818034,1758888646687,-1333.09,0.00040547,30]
[387818035,1758888646697,-480.0,0.00040547,30]
[387818036,1758888646706,-1691.87,0.00040547,30]
[387818037,1758888646716,-480.0,0.00040547,30]
[387818038,1758888646725,-651.15,0.00040547,30]
[387818039,1758888646734,-482.2,0.00040547,30]
[387818040,1758888646744,-754.39,0.00040547,30]
[387818041,1758888646753,-490.4,0.00040547,30]
[387818042,1758888646766,-3277.59,0.00040547,30]
[387818043,1758888646775,-480.0,0.00040547,30]
[387818044,1758888646785,-220.040673,0.00040547,30]
[387818045,1758888646794,-364.18048296,0.00040559,35]
[387818046,1758888646804,-480.0,0.00040821,30]
[387818047,1758888646813,-480.0,0.00040821,30]
[387818048,1758888646822,-480.0,0.00040821,30]
[387818049,1758888646832,-480.0,0.00040821,30]
[387818050,1758888646842,-480.0,0.00040821,30]
[387818051,1758888646851,-1480.18,0.00040821,30]
[387818052,1758888646860,-480.0,0.00040821,30]
[387818053,1758888646870,-480.0,0.00040821,30]
[387818054,1758888646880,-721.24,0.00040821,30]
[387818055,1758888646892,-506.89,0.00040821,30]
[387818056,1758888646902,-720.1,0.00040821,30]
[387818057,1758888646911,-658.47,0.00040821,30]
[387818058,1758888646921,-480.0,0.00040821,30]
[387818059,1758888646930,-480.0,0.00040821,30]
[387818060,1758888646940,-494.34315033,0.00040821,30]
[387818061,1758888646949,-3163.02,0.00040821,30]
[387818062,1758888646958,-555.11,0.00040821,30]
[387818063,1758888646968,-480.0,0.00040821,30]
[387818064,1758888646977,-480.0,0.00040821,30]
[387818065,1758888646986,-480.0,0.00040821,30]
[387818066,1758888646996,-805.09,0.00040821,3]
[387818067,1758888647005,-648.22,0.00040821,30]
[387818068,1758888647014,-480.0,0.00040821,30]
[387818069,1758888647024,-912.7,0.00040821,30]
[387818070,1758888647033,-480.0,0.00040821,21]
[387818071,1758888647043,-544.18,0.00040821,30]
[387818072,1758888647052,-480.0,0.00040821,30]
[387818073,1758888647061,-1268.94,0.00040821,30]
[387818074,1758888647071,-750.32,0.00040821,30]
[387818075,1758888647080,-480.0,0.00040821,30]
[387818076,1758888647089,-480.0,0.00040821,30]
[387818077,1758888647099,-487.72,0.00040821,30]
[387818078,1758888647108,-1333.09,0.00040821,30]
[387818079,1758888647117,-480.0,0.00040821,30]
[387818080,1758888647127,-1691.87,0.00040821,30]
[387818081,1758888647136,-426.36516296,0.00040821,30]
[387818082,1758888647145,-651.15,0.00040821,30]
[387818083,1758888647155,-482.2,0.00040821,30]
[387818084,1758888647164,-500.0,0.00040821,120]
[387818085,1758888647173,-754.39,0.00040821,30]
[387818086,1758888647182,-490.4,0.00040821,30]
[387818087,1758888647192,-3277.59,0.00040821,30]
[387818088,1758888647202,-480.0,0.00040821,30]
[387818089,1758888647212,-984.75039709,0.00040864,5]
[387818090,1758888647221,-480.0,0.00041095,120]
[387818091,1758888647231,-480.0,0.00041095,120]
[387818092,1758888647240,-260.66504203,0.00041095,120]
[387818093,1758888647250,-480.0,0.00041095,120]
[387818094,1758888647259,-1480.18,0.00041095,120]
[387818095,1758888647268,-480.0,0.00041095,120]
[387818096,1758888647278,-480.0,0.00041095,120]
[387818097,1758888647287,-721.24,0.00041095,120]
[387818098,1758888647297,-506.89,0.00041095,120]
[387818099,1758888647307,-720.1,0.00041095,120]
[387818100,1758888647317,-658.47,0.00041095,120]
[387818101,1758888647327,-480.0,0.00041095,30]
[387818102,1758888647336,-500.0,0.00041095,120]
[387818103,1758888647346,-480.0,0.00041095,120]
[387818104,1758888647356,-3163.02,0.00041095,120]
[387818105,1758888647365,-555.11,0.00041095,120]
[387818106,1758888647374,-205.54663973,0.00041095,120]
[387818107,1758888647384,-480.0,0.00041095,120]
[387818108,1758888647394,-480.0,0.00041095,120]
[387818109,1758888647403,-805.09,0.00041095,3]
[387818110,1758888647412,-648.22,0.00041095,120]
[387818111,1758888647421,-480.0,0.00041095,120]
[387818112,1758888647431,-912.7,0.00041095,120]
[387818113,1758888647440,-480.0,0.00041095,21]
[387818114,1758888647449,-480.0,0.00041095,120]
[387818115,1758888647459,-1268.94,0.00041095,120]
[387818116,1758888647468,-750.32,0.00041095,120]
[387818117,1758888647477,-480.0,0.00041095,120]
[387818118,1758888647487,-480.0,0.00041095,120]
[387818119,1758888647496,-487.72,0.00041095,120]
[387818120,1758888647505,-1333.09,0.00041095,120]
[387818121,1758888647514,-480.0,0.00041095,120]
[387818122,1758888647523,-1691.87,0.00041095,120]
[387818123,1758888647533,-651.15,0.00041095,120]
[387818124,1758888647542,-482.2,0.00041095,120]
[387818125,1758888647551,-754.39,0.00041095,120]
[387818126,1758888647560,-490.4,0.00041095,120]
[387818127,1758888647570,-3277.59,0.00041095,120]
[387818128,1758888647581,-480.0,0.00041095,120]
[387818129,1758888647590,-1598.03,0.000411,14]
[387818130,1758888647598,-1255.81211211,0.00041188,2]
[387818131,1758888647607,-480.0,0.00041369,120]
[387818132,1758888647618,-480.0,0.00041369,120]
[387818133,1758888647627,-480.0,0.00041369,120]
[387818134,1758888647637,-1480.18,0.00041369,120]
[387818135,1758888647647,-480.0,0.00041369,120]
[387818136,1758888647662,-480.0,0.00041369,120]
[387818137,1758888647671,-721.24,0.00041369,120]
[387818138,1758888647679,-506.89,0.00041369,120]
[387818139,1758888647688,-720.1,0.00041369,120]
[387818140,1758888647697,-658.47,0.00041369,120]
[387818141,1758888647707,-480.0,0.00041369,30]
[387818142,1758888647717,-500.0,0.00041369,120]
[387818143,1758888647726,-480.0,0.00041369,120]
[387818144,1758888647735,-3163.02,0.00041369,120]
[387818145,1758888647744,-555.11,0.00041369,120]
[387818146,1758888647753,-480.0,0.00041369,120]
[387818147,1758888647763,-480.0,0.00041369,120]
[387818148,1758888647772,-805.09,0.00041369,3]
[387818149,1758888647782,-648.22,0.00041369,120]
[387818150,1758888647791,-480.0,0.00041369,120]
[387818151,1758888647800,-912.7,0.00041369,120]
[387818152,1758888647810,-480.0,0.00041369,21]
[387818153,1758888647820,-191.2,0.00041369,120]
[387818154,1758888647829,-1268.94,0.00041369,120]
[387818155,1758888647839,-750.32,0.00041369,120]
[387818156,1758888647848,-480.0,0.00041369,120]
[387818157,1758888647857,-480.0,0.00041369,120]
[387818158,1758888647867,-487.72,0.00041369,120]
[387818159,1758888647876,-1333.09,0.00041369,120]
[387818160,1758888647888,-480.0,0.00041369,120]
[387818161,1758888647898,-1691.87,0.00041369,120]
[387818162,1758888647907,-651.15,0.00041369,120]
[387818163,1758888647915,-482.2,0.00041369,120]
[387818164,1758888647925,-754.39,0.00041369,120]
[387818165,1758888647934,-490.4,0.00041369,120]
[387818166,1758888647944,-3277.59,0.00041369,120]
[387818167,1758888647953,-480.0,0.00041369,120]
[387818168,1758888647962,-500.0,0.00041531,30]
[387818169,1758888647972,-500.0,0.00041531,30]
[387818170,1758888647981,-480.0,0.00041643,120]
[387818171,1758888647990,-480.0,0.00041643,120]
[387818172,1758888647999,-480.0,0.00041643,120]
[387818173,1758888648009,-1480.18,0.00041643,120]
[387818174,1758888648019,-480.0,0.00041643,120]
[387818175,1758888648028,-480.0,0.00041643,120]
[387818176,1758888648037,-721.24,0.00041643,120]
[387818177,1758888648047,-506.89,0.00041643,120]
[387818178,1758888648056,-720.1,0.00041643,120]
[387818179,1758888648065,-658.47,0.00041643,120]
[387818180,1758888648075,-480.0,0.00041643,30]
[387818181,1758888648084,-500.0,0.00041643,120]
[387818182,1758888648093,-480.0,0.00041643,120]
[387818183,1758888648102,-3163.02,0.00041643,120]
[387818184,1758888648111,-555.11,0.00041643,120]
[387818185,1758888648121,-480.0,0.00041643,120]
[387818186,1758888648132,-480.0,0.00041643,120]
[387818187,1758888648141,-805.09,0.00041643,3]
[387818188,1758888648151,-648.22,0.00041643,120]
[387818189,1758888648161,-480.0,0.00041643,120]
[387818190,1758888648259,-912.7,0.00041643,120]
[387818191,1758888648270,-480.0,0.00041643,21]
[387818192,1758888648280,-1268.94,0.00041643,120]
[387818193,1758888648290,-750.32,0.00041643,120]
[387818194,1758888648299,-480.0,0.00041643,120]
[387818195,1758888648309,-480.0,0.00041643,120]
[387818196,1758888648318,-487.72,0.00041643,120]
[387818197,1758888648328,-1333.09,0.00041643,120]
[387818198,1758888648337,-480.0,0.00041643,120]
[387818199,1758888648348,-1691.87,0.00041643,120]
[387818200,1758888648357,-651.15,0.00041643,120]
[387818201,1758888648367,-482.2,0.00041643,120]
[387818202,1758888648377,-500.0,0.00041643,120]
[387818203,1758888648387,-754.39,0.00041643,120]
[387818204,1758888648396,-490.4,0.00041643,120]
[387818205,1758888648406,-3277.59,0.00041643,120]
[387818206,1758888648416,-480.0,0.00041643,120]
[387818207,1758888648425,-364.18048296,0.00041707,38]
[387818208,1758888648435,-480.0,0.00041917,120]
[387818209,1758888648445,-158.01258246,0.00041917,120]
[387818210,1758888648454,-480.0,0.00041917,120]
[387818211,1758888648464,-1480.18,0.00041917,120]
[387818212,1758888648474,-480.0,0.00041917,120]
[387818213,1758888648484,-480.0,0.00041917,120]
[387818214,1758888648493,-721.24,0.00041917,120]
[387818215,1758888648503,-506.89,0.00041917,120]
[387818216,1758888648513,-720.1,0.00041917,120]
[387818217,1758888648523,-480.0,0.00041917,30]
[387818218,1758888648532,-658.47,0.00041917,120]
[387818219,1758888648542,-500.0,0.00041917,120]
[387818220,1758888648552,-480.0,0.00041917,120]
[387818221,1758888648561,-3163.02,0.00041917,120]
[387818222,1758888648573,-555.11,0.00041917,120]
[387818223,1758888648583,-480.0,0.00041917,120]
[387818224,1758888648592,-480.0,0.00041917,120]
[387818225,1758888648602,-805.09,0.00041917,3]
[387818226,1758888648611,-648.22,0.00041917,120]
[387818227,1758888648621,-480.0,0.00041917,120]
[387818228,1758888648631,-912.7,0.00041917,120]
[387818229,1758888648640,-480.0,0.00041917,21]
[387818230,1758888648650,-1268.94,0.00041917,120]
[387818231,1758888648660,-750.32,0.00041917,120]
[387818232,1758888648671,-489.44153468,0.00041917,120]
[387818233,1758888648681,-480.0,0.00041917,120]
[387818234,1758888648690,-487.72,0.00041917,120]
[387818235,1758888648700,-1333.09,0.00041917,120]
[387818236,1758888648710,-480.0,0.00041917,120]
[387818237,1758888648719,-1691.87,0.00041917,120]